fUSD/lending_fUSD_20250629
["ID","MTS","AMOUNT","RATE_DAILY","PERIOD"]
[368524517,1751195460588,-490.0,0.00027945,3]
[368524518,1751195460598,-604.89,0.00027945,3]
[368524519,1751195460608,-490.0,0.00027945,3]
[368524520,1751195460617,-490.0,0.00027945,3]
[368524521,1751195460626,-1638.76,0.00027945,3]
[368524522,1751195460638,-490.0,0.00027945,3]
[368524523,1751195460648,-490.0,0.00027945,3]
[368524524,1751195460657,-490.0,0.00027945,3]
[368524525,1751195460667,-490.0,0.00027945,3]
[368524526,1751195460677,-590.89,0.00027945,3]
[368524527,1751195460687,-490.0,0.00027945,3]
[368524528,1751195460696,-1217.95,0.00027945,3]
[368524529,1751195460706,-490.0,0.00027945,3]
[368524530,1751195460716,-490.0,0.00027945,3]
[368524531,1751195460726,-528.4,0.00027945,3]
[368524532,1751195460736,-498.25,0.00027945,3]
[368524533,1751195460745,-1047.55,0.00027945,3]
[368524534,1751195460755,-932.64,0.00027945,3]
[368524535,1751195460765,-1535.93,0.00027945,3]
[368524536,1751195460775,-490.0,0.00027945,3]
[368524537,1751195460786,-1410.37,0.00027945,3]
[368524538,1751195460796,-857.63,0.00027945,3]
[368524540,1751195460806,-490.0,0.00027945,3]
[368524542,1751195460816,-490.0,0.00027945,3]
[368524544,1751195460826,-490.0,0.00027945,3]
[368524546,1751195460835,-764.97,0.00027945,3]
[368524548,1751195460844,-490.0,0.00027945,3]
[368524550,1751195460854,-490.0,0.00027945,3]
[368524552,1751195460864,-1226.51,0.00027945,3]
[368524553,1751195460873,-490.0,0.00027945,3]
[368524555,1751195460883,-719.95,0.00027945,3]
[368524557,1751195460894,-979.74,0.00027945,3]
[368524559,1751195460904,-991.19,0.00027945,3]
[368524561,1751195460915,-490.0,0.00027945,3]
[368524562,1751195460924,-490.0,0.00027945,3]
[368524563,1751195460933,-892.18,0.00027945,3]
[368524564,1751195460943,-490.0,0.00027945,3]
[368524565,1751195460953,-490.0,0.00027945,3]
[368524566,1751195460962,-490.0,0.00027945,3]
[368524567,1751195460973,-523.71,0.00027945,3]
[368524568,1751195460983,-490.0,0.00027945,3]
[368524569,1751195460993,-490.0,0.00027945,3]
[368524570,1751195461003,-490.0,0.00027945,3]
[368524571,1751195461013,-490.0,0.00027945,3]
[368524572,1751195461023,-490.0,0.00027945,3]
[368524573,1751195461033,-1618.13,0.00027945,3]
[368524574,1751195461043,-490.0,0.00027945,3]
[368524575,1751195461053,-1261.23,0.00027945,3]
[368524576,1751195461063,-662.39,0.00027945,3]
[368524577,1751195461073,-533.43,0.00027945,3]
[368524578,1751195461082,-490.0,0.00027945,3]
[368524579,1751195461092,-490.0,0.00027945,3]
[368524580,1751195461102,-490.0,0.00027945,3]
[368524581,1751195461112,-851.98,0.00027945,3]
[368524582,1751195461122,-3244.07,0.00027945,3]
[368524583,1751195461132,-490.0,0.00027945,3]
[368524584,1751195461142,-167.08764089,0.00027945,3]
[368524585,1751195461151,-490.0,0.00027945,3]
[368524586,1751195461162,-490.0,0.00027945,3]
[368524587,1751195461171,-490.0,0.00027945,3]
[368524588,1751195461182,-490.0,0.00027945,3]
[368524589,1751195461193,-490.0,0.00027945,3]
[368524590,1751195461204,-650.15,0.00027945,3]
[368524591,1751195461213,-643.65,0.00027945,3]
[368524592,1751195461223,-588.08,0.00027945,3]
[368524593,1751195461233,-793.06,0.00027945,3]
[368524594,1751195461242,-1494.92,0.00027945,3]
[368524595,1751195461252,-11062.2,0.00027945,3]
[368524596,1751195461261,-650.49,0.00027945,3]
[368524597,1751195461271,-992.98,0.00027945,3]
[368524598,1751195461280,-490.0,0.00027945,3]
[368524599,1751195461290,-1369.42,0.00027945,3]
[368524600,1751195461300,-490.0,0.00027945,3]
[368524601,1751195461310,-542.01944552,0.00027945,3]
[368524602,1751195461323,-490.0,0.00027945,3]
[368524603,1751195461333,-222.4813353,0.00027945,3]
[368524604,1751195461343,-490.0,0.00027945,3]
[368524605,1751195461352,-2865.08,0.00027945,3]
[368524606,1751195461363,-490.0,0.00027945,3]
[368524607,1751195461375,-490.0,0.00027945,3]
[368524608,1751195461385,-490.0,0.00027945,3]
[368524609,1751195461396,-1255.19,0.00027945,3]
[368524610,1751195461406,-1048.51,0.00027945,3]
[368524611,1751195461416,-895.06,0.00027945,3]
[368524612,1751195461425,-490.0,0.00027945,3]
[368524613,1751195461435,-490.0,0.00027945,3]
[368524614,1751195461445,-1140.15,0.00027945,3]
[368524615,1751195461455,-1475.7,0.00027945,3]
[368524616,1751195461464,-1098.84,0.00027945,3]
[368524617,1751195461474,-689.9,0.00027945,3]
[368524618,1751195461484,-490.0,0.00027945,3]
[368524619,1751195461494,-490.0,0.00027945,3]
[368524620,1751195461504,-509.89,0.00027945,3]
[368524621,1751195461514,-846.61,0.00027945,3]
[368524622,1751195461525,-490.0,0.00027945,3]
[368524623,1751195461535,-800.75,0.00027945,3]
[368524624,1751195461544,-490.0,0.00027945,3]
[368524625,1751195461554,-490.0,0.00027945,3]
[368524626,1751195461564,-1724.34,0.00027945,3]
[368524627,1751195461573,-490.0,0.00027945,3]
[368524628,1751195461583,-839.61,0.00027945,3]
[368524629,1751195461592,-490.0,0.00027945,3]
[368524630,1751195461602,-490.0,0.00027945,3]
[368524631,1751195461611,-490.0,0.00027945,3]
[368524632,1751195461620,-1838.21,0.00027945,3]
[368524633,1751195461630,-490.0,0.00027945,3]
[368524634,1751195461639,-1420.15,0.00027945,3]
[368524635,1751195461649,-490.0,0.00027945,3]
[368524636,1751195461659,-511.65,0.00027945,3]
[368524637,1751195461670,-490.0,0.00027945,3]
[368524638,1751195461679,-1365.53,0.00027945,3]
[368524639,1751195461689,-738.89,0.00027945,3]
[368524640,1751195461699,-1126.33,0.00027945,3]
[368524641,1751195461708,-490.0,0.00027945,3]
[368524642,1751195461718,-490.0,0.00027945,3]
[368524643,1751195461728,-753.94,0.00027945,3]
[368524644,1751195461737,-4179.4,0.00027945,3]
[368524645,1751195461747,-490.0,0.00027945,3]
[368524646,1751195461758,-2082.18,0.00027945,3]
[368524647,1751195461768,-490.0,0.00027945,3]
[368524648,1751195461778,-3115.11,0.00027945,3]
[368524649,1751195461787,-490.0,0.00027945,3]
[368524650,1751195461797,-807.19,0.00027945,3]
[368524651,1751195461807,-1049.11,0.00027945,3]
[368524652,1751195461816,-740.57,0.00027945,3]
[368524653,1751195461826,-490.0,0.00027945,3]
[368524654,1751195462064,-500.89037107,0.00027945,3]
[368524655,1751195462117,-1044.97,0.00027945,3]
[368524656,1751195462128,-490.0,0.00027945,3]
[368524657,1751195462138,-1018.69,0.00027945,3]
[368524658,1751195462148,-1329.73,0.00027945,3]
[368524659,1751195462159,-490.0,0.00027945,3]
[368524660,1751195462169,-664.26,0.00027945,3]
[368524661,1751195462179,-765.79,0.00027945,3]
[368524662,1751195462191,-490.0,0.00027945,3]
[368524663,1751195462201,-1231.21,0.00027945,3]
[368524664,1751195462212,-5898.08,0.00027945,3]
[368524665,1751195462226,-1354.66,0.00027945,3]
[368524666,1751195462235,-801.57,0.00027945,3]
[368524667,1751195462246,-678.52,0.00027945,3]
[368524668,1751195462256,-490.0,0.00027945,3]
[368524669,1751195462266,-490.0,0.00027945,3]
[368524670,1751195462276,-490.0,0.00027945,3]
[368524671,1751195462286,-490.0,0.00027945,3]
[368524672,1751195462296,-728.11,0.00027945,3]
[368524673,1751195462306,-490.0,0.00027945,3]
[368524674,1751195462316,-490.0,0.00027945,3]
[368524675,1751195462328,-853.69,0.00027945,3]
[368524676,1751195462338,-2091.4,0.00027945,3]
[368524677,1751195462348,-1560.41,0.00027945,3]
[368524678,1751195462361,-490.0,0.00027945,3]
[368524679,1751195462371,-898.14,0.00027945,3]
[368524680,1751195462380,-490.0,0.00027945,3]
[368524681,1751195462391,-490.0,0.00027945,3]
[368524682,1751195462403,-490.0,0.00027945,3]
[368524683,1751195462412,-490.0,0.00027945,3]
[368524684,1751195462423,-490.0,0.00027945,3]
[368524685,1751195462433,-751.28,0.00027945,3]
[368524686,1751195462443,-1923.3,0.00027945,3]
[368524687,1751195462454,-1248.49,0.00027945,3]
[368524688,1751195462463,-824.08,0.00027945,3]
[368524689,1751195462474,-490.0,0.00027945,3]
[368524690,1751195462484,-836.36,0.00027945,3]
[368524691,1751195462493,-2818.09,0.00027945,3]
[368524692,1751195462503,-2281.84,0.00027945,3]
[368524693,1751195462513,-1208.52,0.00027945,3]
[368524694,1751195462523,-490.0,0.00027945,3]
[368524695,1751195462532,-490.0,0.00027945,3]
[368524696,1751195462542,-1308.74,0.00027945,3]
[368524697,1751195462552,-812.38,0.00027945,3]
[368524698,1751195462562,-490.0,0.00027945,3]
[368524699,1751195462571,-490.0,0.00027945,3]
[368524700,1751195462581,-965.91,0.00027945,3]
[368524701,1751195462590,-1092.36,0.00027945,3]
[368524702,1751195462600,-2507.76,0.00027945,3]
[368524703,1751195462609,-490.0,0.00027945,3]
[368524704,1751195462618,-490.0,0.00027945,3]
[368524705,1751195462628,-1392.28,0.00027945,3]
[368524706,1751195462638,-545.7,0.00027945,3]
[368524707,1751195462647,-756.84,0.00027945,3]
[368524708,1751195462657,-973.2,0.00027945,3]
[368524709,1751195462666,-490.0,0.00027945,3]
[368524710,1751195462675,-490.0,0.00027945,3]
[368524711,1751195462687,-686.34,0.00027945,3]
[368524712,1751195462695,-1668.27,0.00027945,3]
[368524713,1751195462705,-6899.51,0.00027945,3]
[368524714,1751195462714,-875.0,0.00027945,3]
[368524715,1751195462723,-490.0,0.00027945,3]
[368524716,1751195462733,-1310.27,0.00027945,3]
[368524717,1751195462742,-550.14,0.00027945,3]
[368524718,1751195462751,-490.0,0.00027945,3]
[368524719,1751195462761,-678.08,0.00027945,3]
[368524720,1751195462770,-1492.54,0.00027945,3]
[368524721,1751195462780,-598.31,0.00027945,3]
[368524722,1751195462789,-490.0,0.00027945,3]
[368524723,1751195462798,-490.0,0.00027945,3]
[368524724,1751195462809,-678.33,0.00027945,3]
[368524725,1751195462819,-1285.64,0.00027945,3]
[368524726,1751195462829,-1183.52,0.00027945,3]
[368524727,1751195462838,-2084.42,0.00027945,3]
[368524728,1751195462847,-2071.23,0.00027945,3]
[368524729,1751195462856,-1111.98,0.00027945,3]
[368524730,1751195462865,-541.75306437,0.00027945,3]
[368524731,1751195462874,-1343.62,0.00027945,3]
[368524732,1751195462883,-2149.28,0.00027945,3]
[368524733,1751195462893,-1189.09,0.00027945,3]
[368524734,1751195462902,-624.68,0.00027945,3]
[368524735,1751195462912,-490.0,0.00027945,3]
[368524736,1751195462921,-490.0,0.00027945,3]
[368524737,1751195462930,-1713.38,0.00027945,3]
[368524738,1751195462940,-728.39,0.00027945,3]
[368524739,1751195462949,-490.0,0.00027945,3]
[368524740,1751195462959,-490.0,0.00027945,3]
[368524741,1751195462969,-1929.28,0.00027945,3]
[368524742,1751195462979,-490.0,0.00027945,3]
[368524743,1751195462990,-716.65,0.00027945,3]
[368524744,1751195462999,-490.0,0.00027945,3]
[368524745,1751195463010,-1448.19,0.00027945,3]
[368524746,1751195463021,-490.0,0.00027945,3]
[368524747,1751195463031,-950.17,0.00027945,3]
[368524748,1751195463041,-4228.03,0.00027945,3]
[368524749,1751195463051,-1415.52,0.00027945,3]
[368524750,1751195463062,-578.07,0.00027945,3]
[368524751,1751195463072,-1294.67,0.00027945,3]
[368524752,1751195463082,-2873.11,0.00027945,3]
[368524753,1751195463092,-2568.99,0.00027945,3]
[368524754,1751195463102,-490.0,0.00027945,3]
[368524755,1751195463112,-490.0,0.00027945,3]
[368524756,1751195463122,-490.0,0.00027945,3]
[368524757,1751195463132,-490.0,0.00027945,3]
[368524758,1751195463143,-490.0,0.00027945,3]
[368524759,1751195463153,-1298.15,0.00027945,3]
[368524760,1751195463163,-3934.62,0.00027945,3]
[368524761,1751195463174,-871.69,0.00027945,3]
[368524762,1751195463185,-490.0,0.00027945,3]
[368524763,1751195463195,-490.0,0.00027945,3]
[368524764,1751195463204,-1156.17,0.00027945,3]
[368524765,1751195463215,-490.0,0.00027945,3]
[368524766,1751195463225,-490.0,0.00027945,3]
[368524767,1751195463235,-490.0,0.00027945,3]
[368524768,1751195463245,-490.0,0.00027945,3]
[368524769,1751195463256,-490.0,0.00027945,3]
[368524770,1751195463266,-1135.44,0.00027945,3]
[368524771,1751195463276,-490.0,0.00027945,3]
[368524772,1751195463286,-490.0,0.00027945,3]
[368524773,1751195463296,-5438.07,0.00027945,3]
[368524774,1751195463306,-3395.49,0.00027945,3]
[368524775,1751195463316,-2131.93,0.00027945,3]
[368524776,1751195463329,-490.0,0.00027945,3]
[368524777,1751195463339,-595.7,0.00027945,3]
[368524778,1751195463349,-490.0,0.00027945,3]
[368524779,1751195463360,-1160.67,0.00027945,3]
[368524780,1751195463371,-490.0,0.00027945,3]
[368524781,1751195463381,-490.0,0.00027945,3]
[368524782,1751195463393,-490.0,0.00027945,3]
[368524783,1751195463403,-1082.12,0.00027945,3]
[368524784,1751195463413,-1291.41,0.00027945,3]
[368524785,1751195463423,-3297.43,0.00027945,3]
[368524786,1751195463434,-490.0,0.00027945,3]
[368524787,1751195463444,-1219.38,0.00027945,3]
[368524788,1751195463454,-490.0,0.00027945,3]
[368524789,1751195463466,-1351.77,0.00027945,3]
[368524790,1751195463476,-1046.99,0.00027945,3]
[368524791,1751195463487,-490.0,0.00027945,3]
[368524792,1751195463497,-874.34,0.00027945,3]
[368524793,1751195463507,-490.0,0.00027945,3]
[368524794,1751195463517,-490.0,0.00027945,3]
[368524795,1751195463527,-490.0,0.00027945,3]
[368524796,1751195463536,-490.0,0.00027945,3]
[368524797,1751195463546,-1084.91,0.00027945,3]
[368524798,1751195463555,-1243.77,0.00027945,3]
[368524799,1751195463565,-490.0,0.00027945,3]
[368524800,1751195463575,-2069.3,0.00027945,3]
[368524801,1751195463585,-523.8,0.00027945,3]
[368524802,1751195463595,-664.94,0.00027945,3]
[368524803,1751195463605,-490.0,0.00027945,3]
[368524804,1751195463615,-1431.47,0.00027945,3]
[368524805,1751195463624,-490.0,0.00027945,3]
[368524806,1751195463634,-1230.19,0.00027945,3]
[368524807,1751195463644,-490.0,0.00027945,3]
[368524808,1751195463654,-6887.93,0.00027945,3]
[368524809,1751195463663,-1307.69,0.00027945,3]
[368524810,1751195463674,-523.5543278,0.00027945,3]
[368524811,1751195463684,-2182.43,0.00027945,3]
[368524812,1751195463693,-836.9,0.00027945,3]
[368524813,1751195463703,-7977.88,0.00027945,3]
[368524814,1751195463712,-15438.68,0.00027945,3]
[368524815,1751195463722,-490.0,0.00027945,3]
[368524816,1751195463731,-490.0,0.00027945,3]
[368524817,1751195463741,-1062.58,0.00027945,3]
[368524818,1751195463751,-946.94,0.00027945,3]
[368524819,1751195463760,-752.46,0.00027945,3]
[368524820,1751195463770,-1047.7,0.00027945,3]
[368524821,1751195463779,-951.95,0.00027945,3]
[368524822,1751195463789,-2249.11,0.00027945,3]
[368524823,1751195463799,-1419.39,0.00027945,3]
[368524824,1751195463809,-883.6,0.00027945,3]
[368524825,1751195463819,-1046.27,0.00027945,3]
[368524826,1751195463829,-490.0,0.00027945,3]
[368524827,1751195463839,-490.0,0.00027945,3]
[368524828,1751195463848,-1233.28,0.00027945,3]
[368524829,1751195463859,-490.0,0.00027945,3]
[368524830,1751195463868,-490.0,0.00027945,3]
[368524831,1751195463879,-1053.68,0.00027945,3]
[368524832,1751195463889,-1876.95,0.00027945,3]
[368524833,1751195463899,-1437.9,0.00027945,3]
[368524834,1751195463910,-577.96,0.00027945,3]
[368524835,1751195463919,-858.76,0.00027945,3]
[368524836,1751195463929,-2637.31,0.00027945,3]
[368524837,1751195463939,-1212.63,0.00027945,3]
[368524838,1751195463949,-1172.02,0.00027945,3]
[368524839,1751195463959,-490.0,0.00027945,3]
[368524840,1751195463968,-939.2,0.00027945,3]
[368524841,1751195463978,-490.0,0.00027945,3]
[368524842,1751195463988,-1487.73,0.00027945,3]
[368524843,1751195463997,-1475.83,0.00027945,3]
[368524844,1751195464006,-490.0,0.00027945,3]
[368524845,1751195464016,-513.84,0.00027945,3]
[368524846,1751195464026,-581.65,0.00027945,3]
[368524847,1751195464036,-1094.1,0.00027945,3]
[368524848,1751195464046,-490.0,0.00027945,3]
[368524849,1751195464055,-1624.17,0.00027945,3]
[368524850,1751195464065,-1150.15,0.00027945,3]
[368524851,1751195464075,-2369.11,0.00027945,3]
[368524852,1751195464085,-3721.52,0.00027945,3]
[368524853,1751195464094,-934.06,0.00027945,3]
[368524854,1751195464104,-840.28,0.00027945,3]
[368524855,1751195464114,-490.0,0.00027945,3]
[368524856,1751195464124,-1892.33,0.00027945,3]
[368524857,1751195464134,-3862.52,0.00027945,3]
[368524858,1751195464145,-943.0,0.00027945,3]
[368524859,1751195464155,-490.0,0.00027945,3]
[368524860,1751195464165,-1500.56,0.00027945,3]
[368524861,1751195464175,-1722.76,0.00027945,3]
[368524862,1751195464185,-490.0,0.00027945,3]
[368524863,1751195464195,-574.13992836,0.00027945,3]
[368524864,1751195464206,-490.0,0.00027945,3]
[368524865,1751195464216,-1385.63,0.00027945,3]
[368524866,1751195464226,-690.18,0.00027945,3]
[368524867,1751195464236,-1738.51,0.00027945,3]
[368524868,1751195464246,-490.0,0.00027945,3]
[368524869,1751195464256,-893.12,0.00027945,3]
[368524870,1751195464266,-490.0,0.00027945,3]
[368524871,1751195464275,-490.0,0.00027945,3]
[368524872,1751195464285,-3272.52,0.00027945,3]
[368524873,1751195464295,-490.0,0.00027945,3]
[368524874,1751195464306,-490.0,0.00027945,3]
[368524875,1751195464315,-884.39,0.00027945,3]
[368524876,1751195464328,-1232.52,0.00027945,3]
[368524877,1751195464338,-490.0,0.00027945,3]
[368524878,1751195464347,-490.0,0.00027945,3]
[368524879,1751195464356,-2520.33,0.00027945,3]
[368524880,1751195464368,-8290.98,0.00027945,3]
[368524881,1751195464378,-490.0,0.00027945,3]
[368524882,1751195464387,-2639.97,0.00027945,3]
[368524883,1751195464399,-1073.7,0.00027945,3]
[368524884,1751195464409,-490.0,0.00027945,3]
[368524885,1751195464417,-490.0,0.00027945,3]
[368524886,1751195464427,-1075.68,0.00027945,3]
[368524887,1751195464436,-4185.34,0.00027945,3]
[368524888,1751195464446,-490.0,0.00027945,3]
[368524889,1751195464456,-490.0,0.00027945,3]
[368524890,1751195464465,-506.8,0.00027945,3]
[368524891,1751195464547,-81101.22,0.00027945,3]
[368524892,1751195464557,-500.0,0.00027973,5]
[368524893,1751195464566,-168.0,0.00028054,2]
[368524894,1751195464575,-490.0,0.00028219,3]
[368524895,1751195464584,-490.0,0.00028219,3]
[368524896,1751195464594,-490.0,0.00028219,3]
[368524897,1751195464603,-166.79704309,0.00028219,3]
[368524898,1751195464613,-490.0,0.00028219,3]
[368524899,1751195464624,-470.83765732,0.00028219,3]
[368524900,1751195464633,-572.57,0.00028219,3]
[368524901,1751195464642,-490.0,0.00028219,3]
[368524902,1751195464652,-490.0,0.00028219,3]
[368524903,1751195464662,-828.1,0.00028219,3]
[368524904,1751195464671,-490.0,0.00028219,3]
[368524905,1751195464680,-545.11353931,0.00028219,3]
[368524906,1751195464689,-490.0,0.00028219,3]
[368524907,1751195464699,-490.0,0.00028219,3]
[368524908,1751195464709,-490.0,0.00028219,3]
[368524909,1751195464719,-490.0,0.00028219,3]
[368524910,1751195464728,-490.0,0.00028219,3]
[368524911,1751195464738,-490.0,0.00028219,3]
[368524912,1751195464747,-490.0,0.00028219,3]
[368524913,1751195464756,-490.0,0.00028219,3]
[368524914,1751195464765,-490.0,0.00028219,3]
[368524915,1751195464775,-490.0,0.00028219,3]
[368524916,1751195464784,-490.0,0.00028219,3]
[368524917,1751195464794,-490.0,0.00028219,3]
[368524918,1751195464804,-490.0,0.00028219,3]
[368524919,1751195464814,-490.0,0.00028219,3]
[368524920,1751195464823,-490.0,0.00028219,3]
[368524921,1751195464833,-490.0,0.00028219,3]
[368524922,1751195464842,-490.0,0.00028219,3]
[368524923,1751195464852,-490.0,0.00028219,3]
[368524924,1751195464861,-736.21,0.00028219,3]
[368524925,1751195464870,-490.0,0.00028219,3]
[368524926,1751195464880,-490.0,0.00028219,3]
[368524927,1751195464890,-246.70109513,0.00028219,3]
[368524928,1751195464899,-490.0,0.00028219,3]
[368524929,1751195464908,-490.0,0.00028219,3]
[368524930,1751195464918,-490.0,0.00028219,3]
[368524931,1751195464927,-498.5,0.00028219,3]
[368524932,1751195464936,-490.0,0.00028219,3]
[368524933,1751195464946,-490.0,0.00028219,3]
[368524934,1751195464955,-243.60226234,0.00028219,3]
[368524935,1751195464964,-490.0,0.00028219,3]
[368524936,1751195464974,-490.0,0.00028219,3]
[368524937,1751195464983,-490.0,0.00028219,3]
[368524938,1751195464992,-490.0,0.00028219,3]
[368524939,1751195465001,-490.0,0.00028219,3]
[368524940,1751195465010,-490.0,0.00028219,3]
[368524941,1751195465019,-490.0,0.00028219,3]
[368524942,1751195465028,-490.0,0.00028219,3]
[368524943,1751195465037,-490.0,0.00028219,3]
[368524944,1751195465047,-490.0,0.00028219,3]
[368524945,1751195465056,-490.0,0.00028219,3]
[368524946,1751195465065,-490.0,0.00028219,3]
[368524947,1751195465075,-490.0,0.00028219,3]
[368524948,1751195465084,-490.0,0.00028219,3]
[368524949,1751195465093,-490.0,0.00028219,3]
[368524950,1751195465103,-490.0,0.00028219,3]
[368524951,1751195465112,-490.0,0.00028219,3]
[368524952,1751195465123,-490.0,0.00028219,3]
[368524953,1751195465132,-490.0,0.00028219,3]
[368524954,1751195465142,-490.0,0.00028219,3]
[368524955,1751195465153,-1266.21,0.00028219,3]
[368524956,1751195465162,-490.0,0.00028219,3]
[368524957,1751195465172,-490.0,0.00028219,3]
[368524958,1751195465182,-490.0,0.00028219,3]
[368524959,1751195465192,-490.0,0.00028219,3]
[368524960,1751195465200,-490.0,0.00028219,3]
[368524961,1751195465210,-690.25,0.00028219,3]
[368524962,1751195465219,-490.0,0.00028219,3]
[368524963,1751195465228,-598.13,0.00028219,3]
[368524964,1751195465238,-523.97,0.00028219,3]
[368524965,1751195465247,-490.0,0.00028219,3]
[368524966,1751195465256,-1113.04,0.00028219,3]
[368524967,1751195465265,-679.56,0.00028219,3]
[368524968,1751195465274,-490.0,0.00028219,3]
[368524969,1751195465284,-490.0,0.00028219,3]
[368524970,1751195465294,-490.0,0.00028219,3]
[368524971,1751195465303,-490.0,0.00028219,3]
[368524972,1751195465312,-594.99,0.00028219,3]
[368524973,1751195465323,-490.0,0.00028219,3]
[368524974,1751195465333,-490.0,0.00028219,3]
[368524975,1751195465343,-490.0,0.00028219,3]
[368524976,1751195465352,-490.0,0.00028219,3]
[368524977,1751195465362,-490.0,0.00028219,3]
[368524978,1751195465374,-490.0,0.00028219,3]
[368524979,1751195465383,-1446.76,0.00028219,3]
[368524980,1751195465392,-490.0,0.00028219,3]
[368524981,1751195465402,-490.0,0.00028219,3]
[368524982,1751195465411,-490.0,0.00028219,3]
[368524983,1751195465420,-490.0,0.00028219,3]
[368524984,1751195465431,-490.0,0.00028219,3]
[368524985,1751195465439,-490.0,0.00028219,3]
[368524986,1751195465450,-663.42,0.00028219,3]
[368524987,1751195465460,-1256.21,0.00028219,3]
[368524988,1751195465469,-490.0,0.00028219,3]
[368524989,1751195465478,-490.0,0.00028219,3]
[368524990,1751195465487,-490.0,0.00028219,3]
[368524991,1751195465497,-490.0,0.00028219,3]
[368524992,1751195465508,-1418.54,0.00028219,3]
[368524993,1751195465517,-490.0,0.00028219,3]
[368524994,1751195465526,-490.0,0.00028219,3]
[368524995,1751195465537,-490.0,0.00028219,3]
[368524996,1751195465548,-490.0,0.00028219,3]
[368524997,1751195465557,-490.0,0.00028219,3]
[368524998,1751195465566,-490.0,0.00028219,3]
[368524999,1751195465575,-490.0,0.00028219,3]
[368525000,1751195465583,-490.0,0.00028219,3]
[368525001,1751195465592,-490.0,0.00028219,3]
[368525002,1751195465601,-496.37,0.00028219,3]
[368525003,1751195465610,-1013.41,0.00028219,3]
[368525004,1751195465618,-490.0,0.00028219,3]
[368525005,1751195465628,-1113.41,0.00028219,3]
[368525006,1751195465637,-490.0,0.00028219,3]
[368525007,1751195465646,-490.0,0.00028219,3]
[368525008,1751195465655,-490.0,0.00028219,3]
[368525009,1751195465669,-643.24,0.00028219,3]
[368525010,1751195465678,-490.0,0.00028219,3]
[368525011,1751195465687,-490.0,0.00028219,3]
[368525012,1751195465696,-490.0,0.00028219,3]
[368525013,1751195465705,-490.0,0.00028219,3]
[368525014,1751195465715,-490.0,0.00028219,3]
[368525015,1751195465724,-490.0,0.00028219,3]
[368525016,1751195465733,-490.0,0.00028219,3]
[368525017,1751195465742,-827.85,0.00028219,3]
[368525018,1751195465751,-1223.98,0.00028219,3]
[368525019,1751195465761,-560.05,0.00028219,3]
[368525020,1751195465770,-815.38,0.00028219,3]
[368525021,1751195465780,-745.76,0.00028219,3]
[368525022,1751195465789,-566.05,0.00028219,3]
[368525023,1751195465798,-490.0,0.00028219,3]
[368525024,1751195465808,-568.47,0.00028219,3]
[368525025,1751195465819,-490.0,0.00028219,3]
[368525026,1751195465829,-1242.08,0.00028219,3]
[368525027,1751195465839,-490.0,0.00028219,3]